[Event "Titled Tuesday Blitz May 23 Early 2023"]
[White "Goswami, Vedant"]
[Black "KSho99"]
[WhiteFideId "5003725"]
[WhiteElo "2011"]
[BlackElo "2164"]
[Result "1-0"]
[Round "06"]
[TimeControl "180+2"]
[Date "2023.05.23"]
[WhiteClock "0:01:25"]
[BlackClock "0:01:10"]

1. d4 {[%clk 0:02:55]}  e6 {[%clk 0:02:55]} 2. Nf3 {[%clk 0:02:53]}  f5 {[%clk 0:02:51]} 3. Nc3 {[%clk 0:02:49]}  Nf6 {[%clk 0:02:50]} 4. d5 {[%clk 0:02:47]}  Bb4 {[%clk 0:02:44]} 5. dxe6 {[%clk 0:02:39]}  dxe6 {[%clk 0:02:44]} 6. Qxd8+ {[%clk 0:02:38]}  Kxd8 {[%clk 0:02:45]} 7. Bd2 {[%clk 0:02:37]}  Ke7 {[%clk 0:02:41]} 8. e3 {[%clk 0:02:35]}  Rd8 {[%clk 0:02:34]} 9. Bd3 {[%clk 0:02:31]}  Nc6 {[%clk 0:02:27]} 10. a3 {[%clk 0:02:29]}  Bd6 {[%clk 0:02:22]} 11. e4 {[%clk 0:02:26]}  fxe4 {[%clk 0:02:13]} 12. Nxe4 {[%clk 0:02:25]}  Nxe4 {[%clk 0:02:08]} 13. Bxe4 {[%clk 0:02:25]}  h6 {[%clk 0:02:08]} 14. O-O-O {[%clk 0:02:22]}  Ne5 {[%clk 0:02:02]} 15. Bc3 {[%clk 0:02:12]}  Nxf3 {[%clk 0:02:00]} 16. Bxf3 {[%clk 0:02:12]}  c6 {[%clk 0:01:50]} 17. Bxg7 {[%clk 0:02:10]}  Bf4+ {[%clk 0:01:47]} 18. Kb1 {[%clk 0:02:09]}  Rg8 {[%clk 0:01:47]} 19. Bc3 {[%clk 0:02:04]}  Bd7 {[%clk 0:01:46]} 20. g3 {[%clk 0:02:01]}  Bc7 {[%clk 0:01:45]} 21. Be4 {[%clk 0:01:51]}  Raf8 {[%clk 0:01:40]} 22. f4 {[%clk 0:01:50]}  b6 {[%clk 0:01:26]} 23. Rhe1 {[%clk 0:01:46]}  c5 {[%clk 0:01:26]} 24. Bh7 {[%clk 0:01:30]}  Rg4 {[%clk 0:01:23]} 25. Be4 {[%clk 0:01:26]}  h5 {[%clk 0:01:10]} 26. Bf3 {[%clk 0:01:25]} 1-0


[Site "https://www.chess.com"]

[Event "Titled Tuesday Blitz May 23 Early 2023"]
[White "Singgih, Diajeng Theresa"]
[Black "Topalov, Aleksandar"]
[WhiteFideId "7104391"]
[BlackFideId "925659"]
[WhiteElo "1891"]
[BlackElo "2151"]
[Result "0-1"]
[Round "06"]
[TimeControl "180+2"]
[Date "2023.05.23"]
[WhiteClock "0:00:00"]
[BlackClock "0:00:09"]

1. e4 {[%clk 0:03:00]}  e6 {[%clk 0:02:53]} 2. d4 {[%clk 0:02:56]}  d5 {[%clk 0:02:52]} 3. exd5 {[%clk 0:02:55]}  exd5 {[%clk 0:02:52]} 4. Bd3 {[%clk 0:02:54]}  Bd6 {[%clk 0:02:52]} 5. Nf3 {[%clk 0:02:53]}  Ne7 {[%clk 0:02:52]} 6. O-O {[%clk 0:02:52]}  h6 {[%clk 0:02:50]} 7. Ne5 {[%clk 0:02:52]}  O-O {[%clk 0:02:48]} 8. Bf4 {[%clk 0:02:45]}  f6 {[%clk 0:02:41]} 9. Ng6 {[%clk 0:02:35]}  Nxg6 {[%clk 0:02:35]} 10. Bxd6 {[%clk 0:02:34]}  Qxd6 {[%clk 0:02:34]} 11. Bxg6 {[%clk 0:02:35]}  f5 {[%clk 0:02:32]} 12. Bh5 {[%clk 0:02:29]}  g6 {[%clk 0:02:31]} 13. Be2 {[%clk 0:02:28]}  Nd7 {[%clk 0:02:28]} 14. c4 {[%clk 0:02:28]}  dxc4 {[%clk 0:02:26]} 15. Bxc4+ {[%clk 0:02:27]}  Kh7 {[%clk 0:02:27]} 16. Nc3 {[%clk 0:02:26]}  Nb6 {[%clk 0:02:17]} 17. Bb3 {[%clk 0:02:25]}  c6 {[%clk 0:02:17]} 18. Re1 {[%clk 0:02:21]}  Bd7 {[%clk 0:02:15]} 19. d5 {[%clk 0:02:08]}  c5 {[%clk 0:02:13]} 20. Qf3 {[%clk 0:02:04]}  Rae8 {[%clk 0:02:11]} 21. Ne2 {[%clk 0:01:59]}  Re4 {[%clk 0:02:00]} 22. Ng3 {[%clk 0:01:55]}  Ree8 {[%clk 0:01:55]} 23. a4 {[%clk 0:01:45]}  c4 {[%clk 0:01:55]} 24. Bc2 {[%clk 0:01:44]}  Qxd5 {[%clk 0:01:53]} 25. Qf4 {[%clk 0:01:33]}  Bc6 {[%clk 0:01:41]} 26. f3 {[%clk 0:01:25]}  Qf7 {[%clk 0:01:22]} 27. a5 {[%clk 0:01:17]}  Nd7 {[%clk 0:01:19]} 28. Red1 {[%clk 0:01:04]}  Ne5 {[%clk 0:01:11]} 29. Rd6 {[%clk 0:01:00]}  Nd3 {[%clk 0:00:54]} 30. Qd4 {[%clk 0:00:46]}  Qe7 {[%clk 0:00:35]} 31. a6 {[%clk 0:00:35]}  f4 {[%clk 0:00:24]} 32. Ne4 {[%clk 0:00:22]}  Rd8 {[%clk 0:00:16]} 33. axb7 {[%clk 0:00:20]}  Bxe4 {[%clk 0:00:13]} 34. Rxd8 {[%clk 0:00:17]}  Rxd8 {[%clk 0:00:13]} 35. Qxe4 {[%clk 0:00:17]}  Qxe4 {[%clk 0:00:13]} 36. fxe4 {[%clk 0:00:18]}  Rb8 {[%clk 0:00:12]} 37. Rxa7 {[%clk 0:00:13]}  Nc5 {[%clk 0:00:12]} 38. Kf2 {[%clk 0:00:09]}  Rxb7 {[%clk 0:00:12]} 39. Rxb7+ {[%clk 0:00:09]}  Nxb7 {[%clk 0:00:12]} 40. Kf3 {[%clk 0:00:09]}  g5 {[%clk 0:00:13]} 41. e5+ {[%clk 0:00:08]}  Kg7 {[%clk 0:00:12]} 42. Ke4 {[%clk 0:00:08]}  Na5 {[%clk 0:00:10]} 43. Kd4 {[%clk 0:00:08]}  Kf7 {[%clk 0:00:11]} 44. Kc5 {[%clk 0:00:08]}  Ke6 {[%clk 0:00:10]} 45. Kb6 {[%clk 0:00:08]}  Nb3 {[%clk 0:00:11]} 46. Kb5 {[%clk 0:00:07]}  Nd2 {[%clk 0:00:08]} 47. Bd1 {[%clk 0:00:05]}  Kxe5 {[%clk 0:00:08]} 48. Be2 {[%clk 0:00:05]}  Kd4 {[%clk 0:00:08]} 49. Kb4 {[%clk 0:00:04]}  Kd5 {[%clk 0:00:05]} 50. Kc3 {[%clk 0:00:04]}  Ne4+ {[%clk 0:00:05]} 51. Kb4 {[%clk 0:00:04]}  Nd6 {[%clk 0:00:05]} 52. Kc3 {[%clk 0:00:03]}  Kc5 {[%clk 0:00:06]} 53. Bf3 {[%clk 0:00:02]}  Nb5+ {[%clk 0:00:06]} 54. Kd2 {[%clk 0:00:02]}  Kd4 {[%clk 0:00:06]} 55. Bc6 {[%clk 0:00:02]}  Nd6 {[%clk 0:00:06]} 56. Bf3 {[%clk 0:00:01]}  Ne4+ {[%clk 0:00:06]} 57. Bxe4 {[%clk 0:00:02]}  Kxe4 {[%clk 0:00:06]} 58. Kc3 {[%clk 0:00:02]}  Kd5 {[%clk 0:00:06]} 59. Kb4 {[%clk 0:00:02]}  g4 {[%clk 0:00:06]} 60. Kc3 {[%clk 0:00:02]}  h5 {[%clk 0:00:06]} 61. Kd2 {[%clk 0:00:02]}  Ke4 {[%clk 0:00:06]} 62. Kc3 {[%clk 0:00:02]}  Ke3 {[%clk 0:00:06]} 63. Kxc4 {[%clk 0:00:03]}  f3 {[%clk 0:00:06]} 64. gxf3 {[%clk 0:00:02]}  gxf3 {[%clk 0:00:07]} 65. b4 {[%clk 0:00:03]}  f2 {[%clk 0:00:07]} 66. b5 {[%clk 0:00:03]}  f1=Q+ {[%clk 0:00:08]} 67. Kc5 {[%clk 0:00:03]}  Qf8+ {[%clk 0:00:09]} 68. Kc6 {[%clk 0:00:03]}  Qb8 {[%clk 0:00:09]} 69. b6 {[%clk 0:00:03]}  Kf2 {[%clk 0:00:09]} 70. b7 {[%clk 0:00:03]}  Kg2 {[%clk 0:00:09]} 71. Kb6 {[%clk 0:00:00]}  Kxh2 {[%clk 0:00:09]} 0-1


[Site "https://www.chess.com"]

[Event "Titled Tuesday Blitz May 23 Early 2023"]
[White "Brueckner, Thomas"]
[Black "Larina, Maria"]
[WhiteFideId "4600452"]
[BlackFideId "24113182"]
[WhiteElo "2322"]
[BlackElo "1848"]
[Result "0-1"]
[Round "06"]
[TimeControl "180+2"]
[Date "2023.05.23"]
[WhiteClock "0:00:00"]
[BlackClock "0:00:07"]

1. Nf3 {[%clk 0:03:00]}  f5 {[%clk 0:02:59]} 2. c4 {[%clk 0:02:57]}  Nf6 {[%clk 0:02:59]} 3. g3 {[%clk 0:02:57]}  g6 {[%clk 0:02:58]} 4. b4 {[%clk 0:02:56]}  Bg7 {[%clk 0:02:59]} 5. Bb2 {[%clk 0:02:56]}  O-O {[%clk 0:02:59]} 6. Bg2 {[%clk 0:02:55]}  Nc6 {[%clk 0:02:53]} 7. b5 {[%clk 0:02:51]}  Na5 {[%clk 0:02:53]} 8. d3 {[%clk 0:02:51]}  c6 {[%clk 0:02:52]} 9. a4 {[%clk 0:02:48]}  d6 {[%clk 0:02:48]} 10. O-O {[%clk 0:02:33]}  Bd7 {[%clk 0:02:40]} 11. Nbd2 {[%clk 0:02:16]}  Qb6 {[%clk 0:02:26]} 12. Bd4 {[%clk 0:02:07]}  Qc7 {[%clk 0:02:16]} 13. Nb3 {[%clk 0:01:56]}  Nxb3 {[%clk 0:02:06]} 14. Qxb3 {[%clk 0:01:57]}  Kh8 {[%clk 0:02:00]} 15. Bb2 {[%clk 0:01:45]}  e5 {[%clk 0:01:55]} 16. c5 {[%clk 0:01:41]}  e4 {[%clk 0:01:54]} 17. cxd6 {[%clk 0:01:23]}  Qxd6 {[%clk 0:01:55]} 18. Ne5 {[%clk 0:01:19]}  Be6 {[%clk 0:01:24]} 19. Nc4 {[%clk 0:01:15]}  c5 {[%clk 0:01:14]} 20. Nxd6 {[%clk 0:01:09]}  Bxb3 {[%clk 0:01:13]} 21. Nxb7 {[%clk 0:01:07]}  c4 {[%clk 0:01:10]} 22. dxc4 {[%clk 0:01:00]}  Bxc4 {[%clk 0:01:11]} 23. Rfe1 {[%clk 0:01:01]}  Nd7 {[%clk 0:01:00]} 24. Bxg7+ {[%clk 0:00:55]}  Kxg7 {[%clk 0:01:01]} 25. Na5 {[%clk 0:00:54]}  Be6 {[%clk 0:00:59]} 26. Red1 {[%clk 0:00:48]}  Nc5 {[%clk 0:00:56]} 27. Nc6 {[%clk 0:00:44]}  Rfc8 {[%clk 0:00:46]} 28. a5 {[%clk 0:00:41]}  Bc4 {[%clk 0:00:33]} 29. Rac1 {[%clk 0:00:29]}  Bxb5 {[%clk 0:00:32]} 30. Rxc5 {[%clk 0:00:19]}  Bxc6 {[%clk 0:00:30]} 31. Rdc1 {[%clk 0:00:18]}  Bb7 {[%clk 0:00:31]} 32. Rc7+ {[%clk 0:00:16]}  Kf6 {[%clk 0:00:27]} 33. f3 {[%clk 0:00:13]}  exf3 {[%clk 0:00:24]} 34. Bxf3 {[%clk 0:00:13]}  Bxf3 {[%clk 0:00:24]} 35. exf3 {[%clk 0:00:13]}  Rxc7 {[%clk 0:00:18]} 36. Rxc7 {[%clk 0:00:14]}  h6 {[%clk 0:00:17]} 37. Kf2 {[%clk 0:00:13]}  g5 {[%clk 0:00:16]} 38. Ke3 {[%clk 0:00:11]}  Re8+ {[%clk 0:00:15]} 39. Kd3 {[%clk 0:00:10]}  Rd8+ {[%clk 0:00:16]} 40. Kc3 {[%clk 0:00:09]}  Ra8 {[%clk 0:00:15]} 41. Kc4 {[%clk 0:00:08]}  h5 {[%clk 0:00:16]} 42. Kc5 {[%clk 0:00:06]}  f4 {[%clk 0:00:13]} 43. gxf4 {[%clk 0:00:06]}  gxf4 {[%clk 0:00:14]} 44. Kc6 {[%clk 0:00:06]}  a6 {[%clk 0:00:12]} 45. Kb7 {[%clk 0:00:05]}  Re8 {[%clk 0:00:11]} 46. Kxa6 {[%clk 0:00:05]}  Re3 {[%clk 0:00:11]} 47. Kb7 {[%clk 0:00:04]}  Rxf3 {[%clk 0:00:12]} 48. a6 {[%clk 0:00:04]}  Ra3 {[%clk 0:00:11]} 49. a7 {[%clk 0:00:05]}  Kg5 {[%clk 0:00:10]} 50. a8=Q {[%clk 0:00:01]}  Rxa8 {[%clk 0:00:11]} 51. Kxa8 {[%clk 0:00:02]}  f3 {[%clk 0:00:11]} 52. Rf7 {[%clk 0:00:01]}  Kg4 {[%clk 0:00:11]} 53. Kb7 {[%clk 0:00:00]}  h4 {[%clk 0:00:07]} 0-1


[Site "https://www.chess.com"]

[Event "Titled Tuesday Blitz May 23 Early 2023"]
[White "Sadubayev, Airat"]
[Black "Afanasieva, Alexandra"]
[WhiteFideId "13713264"]
[BlackFideId "34126926"]
[WhiteElo "2157"]
[BlackElo "1745"]
[Result "1-0"]
[Round "06"]
[TimeControl "180+2"]
[Date "2023.05.23"]
[WhiteClock "0:02:08"]
[BlackClock "0:01:06"]

1. d4 {[%clk 0:03:00]}  Nf6 {[%clk 0:02:56]} 2. c4 {[%clk 0:03:01]}  e6 {[%clk 0:02:56]} 3. Nf3 {[%clk 0:03:00]}  Bb4+ {[%clk 0:02:56]} 4. Bd2 {[%clk 0:03:00]}  Be7 {[%clk 0:02:56]} 5. g3 {[%clk 0:03:00]}  d5 {[%clk 0:02:55]} 6. Bg2 {[%clk 0:02:58]}  b6 {[%clk 0:02:55]} 7. cxd5 {[%clk 0:02:57]}  exd5 {[%clk 0:02:56]} 8. O-O {[%clk 0:02:57]}  O-O {[%clk 0:02:56]} 9. Nc3 {[%clk 0:02:57]}  Bb7 {[%clk 0:02:57]} 10. Rc1 {[%clk 0:02:57]}  c5 {[%clk 0:02:56]} 11. dxc5 {[%clk 0:02:53]}  Bxc5 {[%clk 0:02:57]} 12. Bf4 {[%clk 0:02:51]}  Nbd7 {[%clk 0:02:29]} 13. a3 {[%clk 0:02:47]}  Rc8 {[%clk 0:02:20]} 14. b4 {[%clk 0:02:46]}  Be7 {[%clk 0:02:19]} 15. Nb5 {[%clk 0:02:44]}  Rxc1 {[%clk 0:02:02]} 16. Qxc1 {[%clk 0:02:43]}  Qc8 {[%clk 0:02:02]} 17. Nxa7 {[%clk 0:02:36]}  Qa8 {[%clk 0:01:22]} 18. Nb5 {[%clk 0:02:29]}  Qa6 {[%clk 0:01:22]} 19. Nd6 {[%clk 0:02:13]}  Bxd6 {[%clk 0:01:15]} 20. Bxd6 {[%clk 0:02:14]}  Re8 {[%clk 0:01:15]} 21. e3 {[%clk 0:02:10]}  Qxa3 {[%clk 0:01:06]} 22. Qxa3 {[%clk 0:02:08]} 1-0


[Site "https://www.chess.com"]

[Event "Titled Tuesday Blitz May 23 Early 2023"]
[White "Tanmay Jain"]
[Black "Clawitter, Craig"]
[WhiteFideId "45015481"]
[BlackFideId "2023105"]
[WhiteElo "2032"]
[BlackElo "2243"]
[Result "1-0"]
[Round "06"]
[TimeControl "180+2"]
[Date "2023.05.23"]
[WhiteClock "0:00:25"]
[BlackClock "0:00:03"]

1. e4 {[%clk 0:03:00]}  e6 {[%clk 0:02:59]} 2. Nf3 {[%clk 0:02:59]}  d5 {[%clk 0:02:57]} 3. exd5 {[%clk 0:02:59]}  exd5 {[%clk 0:02:58]} 4. d4 {[%clk 0:02:58]}  Bd6 {[%clk 0:02:57]} 5. Bd3 {[%clk 0:02:57]}  Nc6 {[%clk 0:02:57]} 6. O-O {[%clk 0:02:57]}  Bg4 {[%clk 0:02:57]} 7. c3 {[%clk 0:02:45]}  Nge7 {[%clk 0:02:57]} 8. Nbd2 {[%clk 0:02:39]}  f6 {[%clk 0:02:54]} 9. Re1 {[%clk 0:02:35]}  Qd7 {[%clk 0:02:53]} 10. a4 {[%clk 0:02:21]}  O-O {[%clk 0:02:50]} 11. Nf1 {[%clk 0:02:18]}  Rae8 {[%clk 0:02:46]} 12. h3 {[%clk 0:02:14]}  Bf5 {[%clk 0:02:26]} 13. Ng3 {[%clk 0:02:03]}  Bxd3 {[%clk 0:02:10]} 14. Qxd3 {[%clk 0:02:03]}  Bxg3 {[%clk 0:02:11]} 15. fxg3 {[%clk 0:02:04]}  Nf5 {[%clk 0:02:09]} 16. Bf4 {[%clk 0:01:47]}  Nd6 {[%clk 0:01:35]} 17. Bxd6 {[%clk 0:01:38]}  Qxd6 {[%clk 0:01:36]} 18. Nh4 {[%clk 0:01:33]}  Ne7 {[%clk 0:00:58]} 19. Re2 {[%clk 0:01:18]}  c6 {[%clk 0:00:57]} 20. Rae1 {[%clk 0:01:16]}  Qd7 {[%clk 0:00:53]} 21. Re6 {[%clk 0:00:38]}  Ng6 {[%clk 0:00:20]} 22. Qf5 {[%clk 0:00:26]}  Nxh4 {[%clk 0:00:17]} 23. gxh4 {[%clk 0:00:26]}  Rxe6 {[%clk 0:00:16]} 24. Rxe6 {[%clk 0:00:25]}  Re8 {[%clk 0:00:11]} 25. Rxf6 {[%clk 0:00:24]}  Qxf5 {[%clk 0:00:11]} 26. Rxf5 {[%clk 0:00:24]}  Re2 {[%clk 0:00:12]} 27. Rf2 {[%clk 0:00:24]}  Re1+ {[%clk 0:00:12]} 28. Kh2 {[%clk 0:00:24]}  Ra1 {[%clk 0:00:12]} 29. Re2 {[%clk 0:00:23]}  Rxa4 {[%clk 0:00:09]} 30. Re7 {[%clk 0:00:23]}  b6 {[%clk 0:00:08]} 31. Rc7 {[%clk 0:00:23]}  Ra2 {[%clk 0:00:07]} 32. Rxc6 {[%clk 0:00:23]}  Rxb2 {[%clk 0:00:07]} 33. Rc8+ {[%clk 0:00:24]}  Kf7 {[%clk 0:00:07]} 34. Rc7+ {[%clk 0:00:25]}  Kf6 {[%clk 0:00:07]} 35. Rxa7 {[%clk 0:00:26]}  Rc2 {[%clk 0:00:07]} 36. Rc7 {[%clk 0:00:26]}  b5 {[%clk 0:00:07]} 37. Rc5 {[%clk 0:00:25]}  b4 {[%clk 0:00:07]} 38. cxb4 {[%clk 0:00:25]}  Rxc5 {[%clk 0:00:03]} 39. bxc5 {[%clk 0:00:25]} 1-0


[Site "https://www.chess.com"]

[Event "Titled Tuesday Blitz May 23 Early 2023"]
[White "Thiel, Thomas"]
[Black "Kohler, Aran"]
[WhiteFideId "4615964"]
[BlackFideId "1002856"]
[WhiteElo "2234"]
[BlackElo "2387"]
[Result "0-1"]
[Round "06"]
[TimeControl "180+2"]
[Date "2023.05.23"]
[WhiteClock "0:00:00"]
[BlackClock "0:00:33"]

1. e4 {[%clk 0:03:00]}  c6 {[%clk 0:02:59]} 2. d4 {[%clk 0:02:59]}  d5 {[%clk 0:03:00]} 3. exd5 {[%clk 0:02:58]}  cxd5 {[%clk 0:03:00]} 4. c4 {[%clk 0:02:58]}  Nf6 {[%clk 0:02:57]} 5. Nc3 {[%clk 0:02:57]}  Nc6 {[%clk 0:02:57]} 6. Bg5 {[%clk 0:02:55]}  e6 {[%clk 0:02:48]} 7. c5 {[%clk 0:02:53]}  Be7 {[%clk 0:02:47]} 8. Bb5 {[%clk 0:02:52]}  O-O {[%clk 0:02:46]} 9. Nge2 {[%clk 0:02:52]}  Ne4 {[%clk 0:02:40]} 10. Bxe7 {[%clk 0:02:45]}  Nxe7 {[%clk 0:02:35]} 11. O-O {[%clk 0:02:39]}  Ng6 {[%clk 0:02:31]} 12. f4 {[%clk 0:02:22]}  f5 {[%clk 0:02:27]} 13. b4 {[%clk 0:02:18]}  Bd7 {[%clk 0:02:26]} 14. Bxd7 {[%clk 0:02:16]}  Qxd7 {[%clk 0:02:26]} 15. Qa4 {[%clk 0:02:09]}  Qe7 {[%clk 0:02:09]} 16. Rae1 {[%clk 0:02:00]}  Rfc8 {[%clk 0:02:07]} 17. Qb3 {[%clk 0:01:55]}  Kh8 {[%clk 0:02:01]} 18. Rd1 {[%clk 0:01:44]}  b6 {[%clk 0:02:01]} 19. Nxe4 {[%clk 0:01:33]}  fxe4 {[%clk 0:01:59]} 20. f5 {[%clk 0:01:31]}  Nh4 {[%clk 0:01:51]} 21. fxe6 {[%clk 0:01:16]}  Qxe6 {[%clk 0:01:51]} 22. Qg3 {[%clk 0:01:12]}  Qe7 {[%clk 0:01:28]} 23. Nf4 {[%clk 0:01:10]}  Rd8 {[%clk 0:01:23]} 24. Qg4 {[%clk 0:00:58]}  bxc5 {[%clk 0:01:20]} 25. bxc5 {[%clk 0:00:54]}  Rab8 {[%clk 0:01:19]} 26. Rc1 {[%clk 0:00:32]}  Rb2 {[%clk 0:01:18]} 27. c6 {[%clk 0:00:30]}  g5 {[%clk 0:00:57]} 28. c7 {[%clk 0:00:29]}  gxf4 {[%clk 0:00:57]} 29. cxd8=Q+ {[%clk 0:00:27]}  Qxd8 {[%clk 0:00:57]} 30. Qxf4 {[%clk 0:00:25]}  Rxg2+ {[%clk 0:00:54]} 31. Kh1 {[%clk 0:00:23]}  Rg6 {[%clk 0:00:47]} 32. Qe5+ {[%clk 0:00:20]}  Kg8 {[%clk 0:00:46]} 33. Rg1 {[%clk 0:00:20]}  Nf3 {[%clk 0:00:44]} 34. Rxg6+ {[%clk 0:00:17]}  hxg6 {[%clk 0:00:44]} 35. Qe6+ {[%clk 0:00:14]}  Kh7 {[%clk 0:00:41]} 36. Rc8 {[%clk 0:00:13]}  Qh4 {[%clk 0:00:36]} 37. Qg8+ {[%clk 0:00:12]}  Kh6 {[%clk 0:00:36]} 38. Qh8+ {[%clk 0:00:12]}  Kg5 {[%clk 0:00:37]} 39. Qxh4+ {[%clk 0:00:11]}  Nxh4 {[%clk 0:00:37]} 40. Rd8 {[%clk 0:00:10]}  Kf4 {[%clk 0:00:37]} 41. Rxd5 {[%clk 0:00:09]}  e3 {[%clk 0:00:36]} 42. Re5 {[%clk 0:00:09]}  Nf3 {[%clk 0:00:36]} 43. Re7 {[%clk 0:00:06]}  Nxd4 {[%clk 0:00:36]} 44. Rxa7 {[%clk 0:00:04]}  e2 {[%clk 0:00:35]} 45. Re7 {[%clk 0:00:04]}  Kf3 {[%clk 0:00:33]} 46. a4 {[%clk 0:00:03]}  Kf2 {[%clk 0:00:32]} 47. a5 {[%clk 0:00:03]}  e1=Q+ {[%clk 0:00:32]} 48. Rxe1 {[%clk 0:00:00]}  Kxe1 {[%clk 0:00:33]} 0-1


[Site "https://www.chess.com"]

[Event "Titled Tuesday Blitz May 23 Early 2023"]
[White "Torres Hernandez, Leslie Carolin"]
[Black "Martinez, Shawn"]
[WhiteFideId "8400504"]
[BlackFideId "2039770"]
[WhiteElo "1920"]
[BlackElo "2174"]
[Result "1-0"]
[Round "06"]
[TimeControl "180+2"]
[Date "2023.05.23"]
[WhiteClock "0:01:03"]
[BlackClock "0:00:11"]

1. e4 {[%clk 0:02:57]}  c5 {[%clk 0:02:59]} 2. Nf3 {[%clk 0:02:57]}  e6 {[%clk 0:02:59]} 3. d4 {[%clk 0:02:57]}  cxd4 {[%clk 0:03:00]} 4. Nxd4 {[%clk 0:02:58]}  a6 {[%clk 0:03:01]} 5. c4 {[%clk 0:02:58]}  Qc7 {[%clk 0:02:59]} 6. Nc3 {[%clk 0:02:59]}  Nf6 {[%clk 0:02:59]} 7. Be2 {[%clk 0:02:56]}  b6 {[%clk 0:02:58]} 8. O-O {[%clk 0:02:56]}  Bb7 {[%clk 0:02:59]} 9. Bf3 {[%clk 0:02:56]}  Nc6 {[%clk 0:02:57]} 10. b3 {[%clk 0:02:51]}  Bc5 {[%clk 0:02:55]} 11. Be3 {[%clk 0:02:49]}  h5 {[%clk 0:02:54]} 12. Nxc6 {[%clk 0:02:37]}  Bxc6 {[%clk 0:02:45]} 13. Bxc5 {[%clk 0:02:34]}  bxc5 {[%clk 0:02:46]} 14. Re1 {[%clk 0:02:26]}  Qe5 {[%clk 0:02:29]} 15. Nd5 {[%clk 0:02:16]}  Ng4 {[%clk 0:02:19]} 16. g3 {[%clk 0:02:08]}  O-O-O {[%clk 0:02:04]} 17. Qd2 {[%clk 0:01:57]}  exd5 {[%clk 0:01:31]} 18. exd5 {[%clk 0:01:55]}  Qf6 {[%clk 0:01:30]} 19. Bxg4 {[%clk 0:01:24]}  hxg4 {[%clk 0:01:28]} 20. dxc6 {[%clk 0:01:24]}  dxc6 {[%clk 0:01:28]} 21. Qa5 {[%clk 0:01:21]}  Kb7 {[%clk 0:01:20]} 22. Qxc5 {[%clk 0:01:13]}  Rd4 {[%clk 0:01:14]} 23. Re7+ {[%clk 0:01:13]}  Kc8 {[%clk 0:01:06]} 24. Qa7 {[%clk 0:01:05]}  Kd8 {[%clk 0:00:11]} 25. Qc7# {[%clk 0:01:03]} 1-0


[Site "https://www.chess.com"]

[Event "Titled Tuesday Blitz May 23 Early 2023"]
[White "Pg, Mohd Omar Ak Hira"]
[Black "Guevara Sanchez, Erick Marvin"]
[WhiteFideId "10500103"]
[BlackFideId "6700136"]
[WhiteElo "2167"]
[BlackElo "2040"]
[Result "0-1"]
[Round "06"]
[TimeControl "180+2"]
[Date "2023.05.23"]
[WhiteClock "0:00:17"]
[BlackClock "0:00:26"]

1. e4 {[%clk 0:03:00]}  c5 {[%clk 0:03:00]} 2. Nf3 {[%clk 0:03:00]}  d6 {[%clk 0:02:58]} 3. Bb5+ {[%clk 0:02:59]}  Bd7 {[%clk 0:02:58]} 4. Bxd7+ {[%clk 0:02:59]}  Qxd7 {[%clk 0:02:59]} 5. O-O {[%clk 0:02:59]}  Nc6 {[%clk 0:02:58]} 6. c3 {[%clk 0:02:59]}  Nf6 {[%clk 0:02:56]} 7. Re1 {[%clk 0:02:59]}  e6 {[%clk 0:02:55]} 8. d4 {[%clk 0:02:59]}  cxd4 {[%clk 0:02:55]} 9. cxd4 {[%clk 0:02:59]}  d5 {[%clk 0:02:55]} 10. Ne5 {[%clk 0:02:55]}  Nxe5 {[%clk 0:02:52]} 11. dxe5 {[%clk 0:02:55]}  Nxe4 {[%clk 0:02:51]} 12. Nd2 {[%clk 0:02:47]}  Nxd2 {[%clk 0:02:43]} 13. Bxd2 {[%clk 0:02:46]}  Bc5 {[%clk 0:02:42]} 14. Qg4 {[%clk 0:02:42]}  O-O {[%clk 0:02:33]} 15. b4 {[%clk 0:02:09]}  Bb6 {[%clk 0:02:30]} 16. a4 {[%clk 0:02:08]}  a6 {[%clk 0:02:29]} 17. Qg3 {[%clk 0:01:59]}  Kh8 {[%clk 0:02:21]} 18. Be3 {[%clk 0:01:44]}  Bxe3 {[%clk 0:02:17]} 19. Rxe3 {[%clk 0:01:44]}  f6 {[%clk 0:02:16]} 20. Qh4 {[%clk 0:01:38]}  fxe5 {[%clk 0:02:13]} 21. Rxe5 {[%clk 0:01:33]}  Rf5 {[%clk 0:02:12]} 22. Re2 {[%clk 0:01:29]}  Raf8 {[%clk 0:02:09]} 23. h3 {[%clk 0:01:26]}  h6 {[%clk 0:02:08]} 24. Qd4 {[%clk 0:01:25]}  e5 {[%clk 0:02:06]} 25. Qb6 {[%clk 0:01:20]}  d4 {[%clk 0:02:05]} 26. b5 {[%clk 0:01:18]}  axb5 {[%clk 0:02:03]} 27. axb5 {[%clk 0:01:18]}  d3 {[%clk 0:02:02]} 28. Rd2 {[%clk 0:01:18]}  e4 {[%clk 0:02:00]} 29. Ra7 {[%clk 0:01:16]}  R5f7 {[%clk 0:01:42]} 30. Qc5 {[%clk 0:01:04]}  Rf5 {[%clk 0:01:26]} 31. Qe3 {[%clk 0:01:00]}  Re8 {[%clk 0:00:58]} 32. b6 {[%clk 0:00:55]}  Rb5 {[%clk 0:00:44]} 33. g3 {[%clk 0:00:52]}  Qc6 {[%clk 0:00:38]} 34. Ra1 {[%clk 0:00:26]}  Qxb6 {[%clk 0:00:32]} 35. Qf4 {[%clk 0:00:21]}  Qf6 {[%clk 0:00:28]} 36. Qe3 {[%clk 0:00:17]}  Qxa1+ {[%clk 0:00:26]} 0-1


[Site "https://www.chess.com"]

[Event "Titled Tuesday Blitz May 23 Early 2023"]
[White "ritanovikova"]
[Black "Georg, Heinz"]
[BlackFideId "4607295"]
[WhiteElo "2169"]
[BlackElo "2310"]
[Result "0-1"]
[Round "06"]
[TimeControl "180+2"]
[Date "2023.05.23"]
[WhiteClock "0:00:00"]
[BlackClock "0:01:29"]

1. e4 {[%clk 0:02:56]}  e5 {[%clk 0:02:55]} 2. Nf3 {[%clk 0:02:12]}  Nc6 {[%clk 0:02:54]} 3. Bc4 {[%clk 0:02:10]}  Nf6 {[%clk 0:02:54]} 4. Nc3 {[%clk 0:02:09]}  Nxe4 {[%clk 0:02:53]} 5. Nxe4 {[%clk 0:02:08]}  d5 {[%clk 0:02:53]} 6. Bd3 {[%clk 0:02:08]}  dxe4 {[%clk 0:02:53]} 7. Bxe4 {[%clk 0:02:09]}  Bd6 {[%clk 0:02:53]} 8. O-O {[%clk 0:02:06]}  O-O {[%clk 0:02:52]} 9. h3 {[%clk 0:02:06]}  f5 {[%clk 0:02:52]} 10. Bd5+ {[%clk 0:02:06]}  Kh8 {[%clk 0:02:52]} 11. d4 {[%clk 0:02:05]}  e4 {[%clk 0:02:51]} 12. Ng5 {[%clk 0:02:01]}  Bh2+ {[%clk 0:02:38]} 13. Kxh2 {[%clk 0:01:59]}  Qxd5 {[%clk 0:02:38]} 14. Qh5 {[%clk 0:01:55]}  h6 {[%clk 0:02:35]} 15. c4 {[%clk 0:01:34]}  Qxd4 {[%clk 0:02:32]} 16. Be3 {[%clk 0:01:31]}  Qe5+ {[%clk 0:02:31]} 17. g3 {[%clk 0:01:27]}  Kg8 {[%clk 0:02:22]} 18. Bf4 {[%clk 0:01:22]}  Qf6 {[%clk 0:02:19]} 19. h4 {[%clk 0:01:14]}  hxg5 {[%clk 0:02:18]} 20. hxg5 {[%clk 0:01:15]}  g6 {[%clk 0:02:13]} 21. Qh4 {[%clk 0:01:08]}  Qh8 {[%clk 0:02:12]} 22. Kg2 {[%clk 0:01:06]}  Qxh4 {[%clk 0:02:10]} 23. gxh4 {[%clk 0:01:06]}  Be6 {[%clk 0:02:10]} 24. Bxc7 {[%clk 0:01:01]}  Bxc4 {[%clk 0:02:09]} 25. Rfc1 {[%clk 0:01:01]}  Bd3 {[%clk 0:02:06]} 26. h5 {[%clk 0:00:57]}  Rac8 {[%clk 0:02:00]} 27. Bd6 {[%clk 0:00:54]}  Rfd8 {[%clk 0:01:58]} 28. Bf4 {[%clk 0:00:53]}  Ne7 {[%clk 0:01:49]} 29. Rh1 {[%clk 0:00:50]}  Rc2 {[%clk 0:01:42]} 30. hxg6 {[%clk 0:00:47]}  Nxg6 {[%clk 0:01:42]} 31. Be3 {[%clk 0:00:45]}  f4 {[%clk 0:01:42]} 32. Bxa7 {[%clk 0:00:45]}  e3 {[%clk 0:01:42]} 33. Rh6 {[%clk 0:00:42]}  Rxf2+ {[%clk 0:01:40]} 34. Kg1 {[%clk 0:00:42]}  Rd5 {[%clk 0:01:30]} 35. Rd1 {[%clk 0:00:00]}  Rxg5+ {[%clk 0:01:29]} 0-1


[Site "https://www.chess.com"]